fUST/lending_fUST_20240822
["ID","MTS","AMOUNT","RATE_DAILY","PERIOD"]
[335499260,1724283039222,-151.0,0.0001998,2]
[335499261,1724283039232,-207.39386,0.0001998,2]
[335499262,1724283039241,-207.39386,0.0001998,2]
[335499263,1724283039251,-236080.567242,0.0001998,2]
[335499264,1724283039260,-197.518526,0.00019989,2]
[335499265,1724283039271,-197.518526,0.00019989,2]
[335499266,1724283039281,-156.97172,0.00019989,2]
[335499267,1724283039290,-156.97172,0.00019989,2]
[335499268,1724283039299,-151.0,0.00019989,2]
[335499269,1724283039309,-159.941398,0.00019989,2]
[335499270,1724283039319,-159.941398,0.00019989,2]
[335499271,1724283039330,-151.0,0.0001999,2]
[335499272,1724283039341,-197.230811,0.0001999,2]
[335499273,1724283039351,-197.230811,0.0001999,2]
[335499274,1724283039362,-151.0,0.0001999,2]
[335499275,1724283039373,-151.0,0.0001999,2]
[335499276,1724283039385,-151.0,0.0001999,2]
[335499277,1724283039397,-198.659333,0.0001999,2]
[335499278,1724283039412,-342.188446,0.0001999,2]
[335499279,1724283039425,-342.188446,0.0001999,2]
[335499280,1724283039438,-301.020325,0.0001999,2]
[335499281,1724283039449,-301.020325,0.0001999,2]
[335499282,1724283039459,-151.0,0.0001999,2]
[335499283,1724283039470,-210.348852,0.0001999,2]
[335499284,1724283039483,-210.348852,0.0001999,2]
[335499285,1724283039493,-151.0,0.0001999,2]
[335499286,1724283039503,-197.518526,0.0001999,2]
[335499287,1724283039513,-197.518526,0.0001999,2]
[335499288,1724283039523,-78693.5224141,0.0001999,2]
[335499289,1724283039533,-334.938618,0.0001999,2]
[335499290,1724283039544,-453.548997,0.0001999,2]
[335499291,1724283039556,-334.938618,0.0001999,2]
[335499292,1724283039568,-453.548997,0.0001999,2]
[335499293,1724283039577,-156.97172,0.0001999,2]
[335499294,1724283039587,-156.97172,0.0001999,2]
[335499295,1724283039599,-151.0,0.0001999,2]
[335499296,1724283039608,-159.941398,0.0001999,2]
[335499297,1724283039619,-159.941398,0.0001999,2]
[335499298,1724283039630,-151.0,0.0001999,2]
[335499299,1724283039641,-151.0,0.0001999,2]
[335499300,1724283039652,-381.587145,0.0001999,2]
[335499301,1724283039662,-151.0,0.0001999,2]
[335499302,1724283039671,-381.587145,0.0001999,2]
[335499303,1724283039680,-151.0,0.0001999,2]
[335499304,1724283039689,-205.616183,0.0001999,2]
[335499305,1724283039698,-151.0,0.0001999,2]
[335499306,1724283039707,-205.616183,0.0001999,2]
[335499307,1724283039717,-205.616183,0.0001999,2]
[335499308,1724283039726,-205.616183,0.0001999,2]
[335499309,1724283039736,-282.168539,0.0001999,2]
[335499310,1724283039748,-282.168539,0.0001999,2]
[335499311,1724283039759,-155.7303,0.0001999,2]
[335499312,1724283039768,-155.7303,0.0001999,2]
[335499313,1724283039777,-151.0,0.0001999,2]
[335499314,1724283039786,-151.0,0.0001999,2]
[335499315,1724283039795,-207.39386,0.0001999,2]
[335499316,1724283039805,-207.39386,0.0001999,2]
[335499317,1724283039816,-126513.3262371,0.0002,2]
[335499318,1724283039828,-287.17173053,0.0002,2]
[335499319,1724283039839,-10513.28749774,0.0002,2]
[335499320,1724283039850,-151.0,0.0002,2]
[335499321,1724283039861,-435.0,0.0002,2]
[335499322,1724283039872,-154.72922386,0.0002,2]
[335499323,1724283039884,-172.08510632,0.0002,2]
[335499324,1724283039895,-1260.81854444,0.0002,2]
[335499325,1724283039906,-156.66298998,0.0002,2]
[335499326,1724283039916,-285.48087373,0.0002,2]
[335499328,1724283039927,-151.0,0.0002,2]
[335499330,1724283039936,-4093.99724662,0.0002,2]
[335499332,1724283039947,-197.230811,0.0002,2]
[335499334,1724283039958,-5327.81921818,0.0002,2]
[335499336,1724283039967,-197.230811,0.0002,2]
[335499338,1724283039978,-151.0,0.0002,2]
[335499340,1724283039987,-151.0,0.0002,2]
[335499342,1724283039998,-342.188446,0.0002,2]
[335499344,1724283040008,-342.188446,0.0002,2]
[335499345,1724283040017,-301.020325,0.0002,2]
[335499346,1724283040030,-301.020325,0.0002,2]
[335499349,1724283040040,-151.0,0.0002,2]
[335499353,1724283040051,-210.348852,0.0002,2]
[335499356,1724283040061,-210.348852,0.0002,2]
[335499359,1724283040071,-151.0,0.0002,2]
[335499361,1724283040083,-1317.4861197,0.0002,2]
[335499363,1724283040093,-197.518526,0.0002,2]
[335499365,1724283040103,-197.518526,0.0002,2]
[335499366,1724283040112,-197.518526,0.0002,2]
[335499368,1724283040121,-197.518526,0.0002,2]
[335499370,1724283040130,-334.938618,0.0002,2]
[335499372,1724283040140,-453.548997,0.0002,2]
[335499374,1724283040150,-334.938618,0.0002,2]
[335499376,1724283040162,-453.548997,0.0002,2]
[335499377,1724283040172,-156.97172,0.0002,2]
[335499379,1724283040182,-156.97172,0.0002,2]
[335499381,1724283040193,-212.09,0.0002,2]
[335499383,1724283040203,-156.97172,0.0002,2]
[335499384,1724283040212,-156.97172,0.0002,2]
[335499386,1724283040221,-151.0,0.0002,2]
[335499387,1724283040230,-239.445576,0.0002,2]
[335499389,1724283040240,-159.941398,0.0002,2]
[335499391,1724283040251,-159.941398,0.0002,2]
[335499392,1724283040260,-159.941398,0.0002,2]
[335499393,1724283040270,-159.941398,0.0002,2]
[335499394,1724283040279,-151.0,0.0002,2]
[335499395,1724283040288,-381.587145,0.0002,2]
[335499396,1724283040297,-151.0,0.0002,2]
[335499397,1724283040306,-374.85,0.0002,2]
[335499398,1724283040316,-381.587145,0.0002,2]
[335499399,1724283040325,-156.110084,0.0002,2]
[335499400,1724283040335,-205.616183,0.0002,2]
[335499401,1724283040344,-205.616183,0.0002,2]
[335499403,1724283040353,-205.616183,0.0002,2]
[335499405,1724283040362,-205.616183,0.0002,2]
[335499406,1724283040372,-282.168539,0.0002,2]
[335499408,1724283040381,-282.168539,0.0002,2]
[335499410,1724283040390,-282.168539,0.0002,2]
[335499412,1724283040402,-282.168539,0.0002,2]
[335499413,1724283040411,-155.7303,0.0002,2]
[335499415,1724283040420,-155.7303,0.0002,2]
[335499416,1724283040429,-155.7303,0.0002,2]
[335499417,1724283040439,-155.7303,0.0002,2]
[335499418,1724283040449,-151.0,0.0002,2]
[335499419,1724283040458,-151.0,0.0002,2]
[335499420,1724283040467,-190.038474,0.0002,2]
[335499421,1724283040477,-2096.29,0.0002,2]
[335499422,1724283040487,-207.39386,0.0002,2]
[335499423,1724283040496,-207.39386,0.0002,2]
[335499424,1724283040506,-207.39386,0.0002,2]
[335499425,1724283040516,-207.39386,0.0002,2]
[335499426,1724283040527,-465.00009585,0.00020737,2]
[335499427,1724283040539,-1387.71496427,0.0002138,2]
[335499428,1724283040548,-1782.72430889,0.00021567,2]
[335499429,1724283040558,-465.00000479,0.00021774,2]
[335499430,1724283040567,-4039.60403409,0.0002189,2]
[335499431,1724283040577,-342.188446,0.0002189,2]
[335499432,1724283040586,-342.188446,0.0002189,2]
[335499433,1724283040595,-301.020325,0.0002189,2]
[335499434,1724283040604,-301.020325,0.0002189,2]
[335499435,1724283040613,-210.348852,0.0002189,2]
[335499436,1724283040623,-210.348852,0.0002189,2]
[335499437,1724283040632,-151.0,0.0002189,2]
[335499438,1724283040642,-334.938618,0.0002189,2]
[335499439,1724283040651,-453.548997,0.0002189,2]
[335499440,1724283040660,-334.938618,0.0002189,2]
[335499441,1724283040669,-453.548997,0.0002189,2]
[335499442,1724283040679,-381.587145,0.0002189,2]
[335499443,1724283040688,-381.587145,0.0002189,2]
[335499444,1724283040697,-282.168539,0.0002189,2]
[335499445,1724283040706,-282.168539,0.0002189,2]
[335499446,1724283040716,-155.7303,0.0002189,2]
[335499447,1724283040725,-155.7303,0.0002189,2]
[335499448,1724283040734,-151.0,0.0002189,2]
[335499449,1724283040743,-207.39386,0.0002189,2]
[335499450,1724283040752,-207.39386,0.0002189,2]
[335499451,1724283040761,-8883.9076584,0.00021918,2]
[335499452,1724283040770,-185.29604,0.00021918,2]
[335499453,1724283040779,-185.29604,0.00021918,2]
[335499454,1724283040788,-185.29604,0.00021918,2]
[335499455,1724283040797,-185.29604,0.00021918,2]
[335499456,1724283040807,-185.29604,0.00021918,2]
[335499457,1724283040816,-185.29604,0.00021918,2]
[335499458,1724283040825,-185.29604,0.00021918,2]
[335499459,1724283040834,-185.29604,0.00021918,2]
[335499460,1724283040843,-185.29604,0.00021918,2]
[335499461,1724283040852,-185.29604,0.00021918,2]
[335499462,1724283040862,-185.29604,0.00021918,2]
[335499463,1724283040871,-185.29604,0.00021918,2]
[335499464,1724283040880,-154.78144652,0.00022,2]
[335499465,1724283040889,-160.8404123,0.00022,2]
[335499466,1724283040898,-302.51602579,0.00022,2]
[335499467,1724283040907,-1571.455615,0.00022152,2]
[335499468,1724283040917,-302.69728164,0.0002222,2]
[335499469,1724283040926,-500.0,0.00022456,2]
[335499470,1724283040936,-465.00000024,0.00022863,2]
[335499471,1724283040946,-201.50174106,0.00023,2]
[335499472,1724283040955,-160.595156,0.00023014,2]
[335499473,1724283040964,-207.39386,0.00023233,7]
[335499474,1724283040973,-207.39386,0.00023233,7]
[335499475,1724283040982,-1782.72430889,0.00023233,2]
[335499476,1724283040991,-500.0,0.00023578,2]
[335499477,1724283041001,-4039.60403409,0.0002389,2]
[335499478,1724283041010,-151.0,0.0002389,7]
[335499479,1724283041020,-205.616183,0.0002389,7]
[335499480,1724283041029,-205.616183,0.0002389,7]
[335499481,1724283041038,-33557.41968646,0.00024,60]
[335499482,1724283041048,-282.168539,0.00024,7]
[335499483,1724283041058,-282.168539,0.00024,7]
[335499484,1724283041067,-155.7303,0.00024,7]
[335499485,1724283041076,-155.7303,0.00024,7]
[335499486,1724283041085,-185.29604,0.00024,7]
[335499487,1724283041095,-185.29604,0.00024,7]
[335499488,1724283041104,-207.39386,0.00024,7]
[335499489,1724283041113,-207.39386,0.00024,7]
[335499490,1724283041123,-1387.71496427,0.00024084,2]
[335499491,1724283041132,-309.10348645,0.00024179,2]
[335499492,1724283041142,-183.32510841,0.00024184,2]
[335499493,1724283041151,-882.99597685,0.00024193,2]
[335499494,1724283041161,-2096.29,0.000242,14]
[335499495,1724283041171,-953.53947811,0.00024647,2]
[335499496,1724283041180,-200.0,0.00024658,15]
[335499497,1724283041189,-200.0,0.00024658,2]
[335499498,1724283041199,-380.0,0.00024658,2]
[335499499,1724283041208,-2640.65836955,0.00024662,2]
[335499500,1724283041217,-197.518526,0.00024756,7]
[335499501,1724283041226,-197.518526,0.00024756,7]
[335499502,1724283041235,-156.97172,0.00024756,7]
[335499503,1724283041245,-156.97172,0.00024756,7]
[335499504,1724283041254,-159.941398,0.00024756,7]
[335499505,1724283041263,-159.941398,0.00024756,7]
[335499506,1724283041272,-374.85,0.000248,14]
[335499507,1724283041282,-1782.72430889,0.000249,2]
[335499508,1724283041291,-176.0,0.00024932,2]
[335499509,1724283041300,-198.27553857,0.00024973,2]
[335499510,1724283041309,-500.0,0.00024973,2]
[335499511,1724283041318,-10157.57444704,0.00025,2]
[335499512,1724283041329,-151.0,0.00025,7]
[335499513,1724283041337,-151.0,0.00025,7]
[335499514,1724283041347,-197.230811,0.00025,7]
[335499515,1724283041356,-197.230811,0.00025,7]
[335499516,1724283041368,-151.0,0.00025,7]
[335499517,1724283041380,-151.0,0.00025,7]
[335499518,1724283041391,-342.188446,0.00025,7]
[335499519,1724283041407,-342.188446,0.00025,7]
[335499520,1724283041418,-301.020325,0.00025,7]
[335499521,1724283041430,-301.020325,0.00025,7]
[335499522,1724283041443,-210.348852,0.00025,7]
[335499523,1724283041455,-210.348852,0.00025,7]
[335499524,1724283041465,-151.0,0.00025,7]
[335499525,1724283041475,-334.938618,0.00025,7]
[335499526,1724283041487,-453.548997,0.00025,7]
[335499527,1724283041498,-334.938618,0.00025,7]
[335499528,1724283041510,-453.548997,0.00025,7]
[335499529,1724283041521,-241069.20256597,0.00025,30]
[335499530,1724283041531,-212.09,0.00025,7]
[335499531,1724283041543,-381.587145,0.00025,7]
[335499532,1724283041554,-151.0,0.00025,7]
[335499533,1724283041565,-381.587145,0.00025,7]
[335499534,1724283041578,-205.616183,0.00025,7]
[335499535,1724283041591,-205.616183,0.00025,7]
[335499536,1724283041602,-282.168539,0.00025,7]
[335499537,1724283041613,-282.168539,0.00025,7]
[335499538,1724283041624,-282.168539,0.00025,7]
[335499539,1724283041636,-282.168539,0.00025,7]
[335499540,1724283041648,-155.7303,0.00025,7]
[335499541,1724283041660,-155.7303,0.00025,7]
[335499542,1724283041672,-155.7303,0.00025,7]
[335499543,1724283041683,-155.7303,0.00025,7]
[335499544,1724283041696,-176.0,0.00025,2]
[335499545,1724283041707,-185.29604,0.00025,7]
[335499546,1724283041717,-185.29604,0.00025,7]
[335499547,1724283041729,-185.29604,0.00025,7]
[335499548,1724283041739,-185.29604,0.00025,7]
[335499549,1724283041750,-207.39386,0.00025,7]
[335499550,1724283041761,-207.39386,0.00025,7]
[335499551,1724283041773,-207.39386,0.00025,7]
[335499552,1724283041784,-207.393858,0.00025,7]
[335499553,1724283041796,-1000.0,0.00025521,2]
[335499554,1724283041807,-4039.60403409,0.0002589,2]
[335499555,1724283041818,-197.518526,0.0002589,7]
[335499556,1724283041831,-197.518526,0.0002589,7]
[335499557,1724283041841,-156.97172,0.0002589,7]
[335499558,1724283041851,-156.97172,0.0002589,7]
[335499559,1724283041861,-159.941398,0.0002589,7]
[335499560,1724283041872,-159.941398,0.0002589,7]
[335499561,1724283041884,-176.0,0.0002589,2]
[335499562,1724283041895,-151.0,0.00026241,2]
[335499563,1724283041905,-1500.0,0.00026419,2]
[335499564,1724283041917,-1782.72430889,0.00026567,2]
[335499565,1724283041929,-150.112233,0.000267,9]
[335499566,1724283041940,-1387.71496427,0.00026788,2]
[335499567,1724283041952,-1555.16822257,0.00027,120]
[335499568,1724283041964,-176.0,0.00027185,2]
[335499569,1724283041975,-151.0,0.00027207,2]
[335499570,1724283041986,-500.0,0.00027397,7]
[335499571,1724283041998,-2143.26,0.00027397,7]
[335499572,1724283042010,-500.0,0.00027397,7]
[335499573,1724283042021,-500.0,0.00027397,7]
[335499574,1724283042033,-586.27,0.00027397,7]
[335499575,1724283042045,-500.0,0.00027397,7]
[335499576,1724283042058,-652.51,0.00027397,7]
[335499577,1724283042071,-731.58,0.00027397,7]
[335499578,1724283042083,-811.94,0.00027397,7]
[335499579,1724283042094,-500.0,0.00027397,7]
[335499580,1724283042105,-847.1,0.00027397,7]
[335499581,1724283042116,-500.0,0.00027397,7]
[335499582,1724283042128,-500.0,0.00027397,7]
[335499583,1724283042138,-870.07,0.00027397,7]
[335499584,1724283042149,-610.43,0.00027397,7]
[335499585,1724283042160,-500.0,0.00027397,7]
[335499586,1724283042172,-500.0,0.00027397,7]
[335499587,1724283042185,-500.0,0.00027397,7]
[335499588,1724283042198,-197.230811,0.00027397,7]
[335499589,1724283042210,-500.0,0.00027397,7]
[335499590,1724283042224,-197.230811,0.00027397,7]
[335499591,1724283042234,-500.0,0.00027397,7]
[335499592,1724283042244,-500.0,0.00027397,7]
[335499593,1724283042254,-151.0,0.00027397,7]
[335499594,1724283042265,-177.200604,0.00027397,7]
[335499595,1724283042278,-500.0,0.00027397,7]
[335499596,1724283042290,-500.0,0.00027397,7]
[335499597,1724283042302,-639.78,0.00027397,7]
[335499598,1724283042314,-8633.46,0.00027397,7]
[335499599,1724283042327,-245.3598766,0.00027397,7]
[335499600,1724283042341,-342.188446,0.00027397,7]
[335499601,1724283042355,-342.188446,0.00027397,7]
[335499602,1724283042367,-342.188446,0.00027397,7]
[335499603,1724283042379,-342.188446,0.00027397,7]
[335499604,1724283042391,-301.020325,0.00027397,7]
[335499605,1724283042407,-301.020325,0.00027397,7]
[335499606,1724283042419,-301.020325,0.00027397,7]
[335499607,1724283042431,-301.020325,0.00027397,7]
[335499608,1724283042442,-2301.33,0.00027397,7]
[335499609,1724283042454,-210.348852,0.00027397,7]
[335499610,1724283042466,-210.348852,0.00027397,7]
[335499611,1724283042480,-500.0,0.00027397,7]
[335499612,1724283042491,-500.0,0.00027397,7]
[335499613,1724283042502,-210.348852,0.00027397,7]
[335499614,1724283042513,-151.0,0.00027397,7]
[335499615,1724283042525,-210.348852,0.00027397,7]
[335499616,1724283042537,-151.0,0.00027397,7]
[335499617,1724283042549,-500.0,0.00027397,7]
[335499618,1724283042560,-2528.87,0.00027397,7]
[335499619,1724283042572,-11142.65,0.00027397,7]
[335499620,1724283042584,-500.0,0.00027397,7]
[335499621,1724283042595,-2765.99,0.00027397,7]
[335499622,1724283042607,-500.0,0.00027397,7]
[335499623,1724283042618,-783.64,0.00027397,7]
[335499624,1724283042631,-500.0,0.00027397,7]
[335499625,1724283042643,-500.0,0.00027397,7]
[335499626,1724283042656,-197.518526,0.00027397,7]
[335499627,1724283042667,-197.518526,0.00027397,7]
[335499628,1724283042679,-197.518526,0.00027397,7]
[335499629,1724283042690,-500.0,0.00027397,7]
[335499630,1724283042702,-515.56888317,0.00027397,7]
[335499631,1724283042713,-197.518526,0.00027397,7]
[335499632,1724283042723,-197.518526,0.00027397,7]
[335499633,1724283042734,-197.518526,0.00027397,7]
[335499634,1724283042746,-500.0,0.00027397,7]
[335499635,1724283042757,-500.0,0.00027397,7]
[335499636,1724283042767,-500.0,0.00027397,7]
[335499637,1724283042777,-334.938618,0.00027397,7]
[335499638,1724283042788,-334.938618,0.00027397,7]
[335499639,1724283042798,-500.0,0.00027397,7]
[335499640,1724283042809,-453.548997,0.00027397,7]
[335499641,1724283042820,-453.548997,0.00027397,7]
[335499642,1724283042831,-514.23845675,0.00027397,7]
[335499643,1724283042842,-500.0,0.00027397,7]
[335499644,1724283042852,-500.0,0.00027397,7]
[335499645,1724283042862,-334.938618,0.00027397,7]
[335499646,1724283042872,-730.77,0.00027397,7]
[335499647,1724283042883,-334.938618,0.00027397,7]
[335499648,1724283042892,-453.548997,0.00027397,7]
[335499649,1724283042903,-453.548997,0.00027397,7]
[335499650,1724283042913,-156.97172,0.00027397,7]
[335499651,1724283042923,-156.97172,0.00027397,7]
[335499652,1724283042933,-156.97172,0.00027397,7]
[335499653,1724283042943,-1118.61,0.00027397,7]
[335499654,1724283042954,-500.0,0.00027397,7]
[335499655,1724283042965,-156.97172,0.00027397,7]
[335499656,1724283042975,-156.97172,0.00027397,7]
[335499657,1724283042986,-156.97172,0.00027397,7]
[335499659,1724283042996,-500.0,0.00027397,7]
[335499661,1724283043007,-920.46,0.00027397,7]
[335499663,1724283043017,-3450.61,0.00027397,7]
[335499665,1724283043027,-159.941398,0.00027397,7]
[335499666,1724283043037,-159.941398,0.00027397,7]
[335499668,1724283043048,-159.941398,0.00027397,7]
[335499670,1724283043058,-3419.67,0.00027397,7]
[335499671,1724283043068,-500.0,0.00027397,7]
[335499672,1724283043079,-858.11,0.00027397,7]
[335499673,1724283043090,-500.0,0.00027397,7]
[335499674,1724283043100,-159.941398,0.00027397,7]
[335499675,1724283043110,-159.941398,0.00027397,7]
[335499676,1724283043120,-159.941398,0.00027397,7]
[335499677,1724283043131,-250.99232814,0.00027397,7]
[335499679,1724283043141,-500.0,0.00027397,7]
[335499681,1724283043152,-1080.3,0.00027397,7]
[335499683,1724283043164,-500.0,0.00027397,7]
[335499685,1724283043176,-500.0,0.00027397,7]
[335499686,1724283043189,-381.587145,0.00027397,7]
[335499688,1724283043200,-381.587145,0.00027397,7]
[335499690,1724283043211,-151.0,0.00027397,7]
[335499691,1724283043221,-151.0,0.00027397,7]
[335499692,1724283043232,-500.0,0.00027397,7]
[335499693,1724283043242,-1200.0,0.00027397,28]
[335499694,1724283043254,-1200.0,0.00027397,28]
[335499695,1724283043264,-1200.0,0.00027397,28]
[335499696,1724283043274,-1934.69,0.00027397,7]
[335499697,1724283043285,-381.587145,0.00027397,7]
[335499699,1724283043295,-1200.0,0.00027397,28]
[335499701,1724283043307,-500.0,0.00027397,7]
[335499702,1724283043318,-1200.0,0.00027397,28]
[335499703,1724283043331,-381.587145,0.00027397,7]
[335499704,1724283043341,-1200.0,0.00027397,28]
[335499705,1724283043352,-1200.0,0.00027397,28]
[335499706,1724283043363,-1200.0,0.00027397,28]
[335499707,1724283043374,-1200.0,0.00027397,28]
[335499708,1724283043386,-1200.0,0.00027397,28]
[335499709,1724283043398,-1200.0,0.00027397,28]
[335499710,1724283043412,-1200.0,0.00027397,28]
[335499711,1724283043422,-1200.0,0.00027397,28]
[335499712,1724283043433,-1200.0,0.00027397,28]
[335499713,1724283043444,-1200.0,0.00027397,28]
[335499714,1724283043455,-1200.0,0.00027397,28]
[335499715,1724283043466,-1200.0,0.00027397,28]
[335499716,1724283043477,-1200.0,0.00027397,28]
[335499717,1724283043487,-500.0,0.00027397,7]
[335499718,1724283043498,-1200.0,0.00027397,28]
[335499719,1724283043509,-1200.0,0.00027397,28]
[335499720,1724283043520,-1200.0,0.00027397,28]
[335499721,1724283043530,-1200.0,0.00027397,28]
[335499722,1724283043540,-1200.0,0.00027397,28]
[335499723,1724283043550,-1200.0,0.00027397,28]
[335499724,1724283043561,-685.65,0.00027397,7]
[335499725,1724283043570,-1200.0,0.00027397,28]
[335499726,1724283043581,-1200.0,0.00027397,28]
[335499727,1724283043591,-1200.0,0.00027397,28]
[335499728,1724283043601,-1200.0,0.00027397,28]
[335499729,1724283043612,-1200.0,0.00027397,28]
[335499730,1724283043622,-500.0,0.00027397,7]
[335499731,1724283043633,-1200.0,0.00027397,28]
[335499732,1724283043643,-500.0,0.00027397,7]
[335499733,1724283043653,-1200.0,0.00027397,28]
[335499734,1724283043663,-1200.0,0.00027397,28]
[335499735,1724283043674,-1200.0,0.00027397,28]
[335499736,1724283043683,-1200.0,0.00027397,28]
[335499737,1724283043694,-500.0,0.00027397,7]
[335499738,1724283043705,-1200.0,0.00027397,28]
[335499739,1724283043715,-1200.0,0.00027397,28]
[335499740,1724283043724,-482.081212,0.00027397,28]
[335499741,1724283043734,-500.0,0.00027397,7]
[335499742,1724283043744,-9574.54,0.00027397,7]
[335499743,1724283043754,-9574.54,0.00027397,7]
[335499744,1724283043764,-9574.54,0.00027397,7]
[335499745,1724283043774,-9574.54,0.00027397,7]
[335499746,1724283043784,-205.616183,0.00027397,7]
[335499747,1724283043794,-557.55,0.00027397,7]
[335499748,1724283043805,-205.616183,0.00027397,7]
[335499749,1724283043814,-500.0,0.00027397,7]
[335499750,1724283043824,-760.89,0.00027397,7]
[335499751,1724283043835,-205.616183,0.00027397,7]
[335499752,1724283043845,-205.616181,0.00027397,7]
[335499753,1724283043855,-500.0,0.00027397,7]
[335499754,1724283043865,-500.0,0.00027397,7]
[335499755,1724283043875,-500.0,0.00027397,7]
[335499756,1724283043884,-1703.51,0.00027397,7]
[335499757,1724283043894,-2498.75,0.00027397,7]
[335499758,1724283043904,-500.0,0.00027397,7]
[335499759,1724283043915,-2346.55,0.00027397,7]
[335499760,1724283043925,-282.168539,0.00027397,7]
[335499761,1724283043935,-282.168534,0.00027397,7]
[335499762,1724283043946,-500.0,0.00027397,7]
[335499763,1724283043956,-500.0,0.00027397,7]
[335499764,1724283043966,-155.7303,0.00027397,7]
[335499765,1724283043976,-500.0,0.00027397,7]
[335499766,1724283043986,-500.0,0.00027397,7]
[335499767,1724283043996,-155.730308,0.00027397,7]
[335499768,1724283044006,-5917.35,0.00027397,7]
[335499769,1724283044015,-500.0,0.00027397,7]
[335499770,1724283044028,-500.0,0.00027397,7]
[335499771,1724283044039,-500.0,0.00027397,7]
[335499772,1724283044051,-500.0,0.00027397,7]
[335499773,1724283044063,-586.14,0.00027397,7]
[335499774,1724283044074,-500.0,0.00027397,7]
[335499775,1724283044086,-3907.54,0.00027397,7]
[335499776,1724283044097,-500.0,0.00027397,7]
[335499777,1724283044107,-1188.26,0.00027397,7]
[335499778,1724283044120,-500.0,0.00027397,7]
[335499779,1724283044131,-1098.0,0.00027397,7]
[335499780,1724283044142,-500.0,0.00027397,7]
[335499781,1724283044153,-848.66,0.00027397,7]
[335499782,1724283044163,-500.0,0.00027397,7]
[335499783,1724283044174,-500.0,0.00027397,7]
[335499784,1724283044185,-500.0,0.00027397,7]
[335499785,1724283044196,-185.29604,0.00027397,7]
[335499786,1724283044208,-500.0,0.00027397,7]
[335499787,1724283044219,-500.0,0.00027397,7]
[335499788,1724283044231,-500.0,0.00027397,7]
[335499789,1724283044242,-500.0,0.00027397,7]
[335499790,1724283044257,-500.0,0.00027397,7]
[335499791,1724283044268,-185.296041,0.00027397,7]
[335499792,1724283044281,-582.32,0.00027397,7]
[335499793,1724283044291,-519.35,0.00027397,7]
[335499794,1724283044302,-500.0,0.00027397,7]
[335499795,1724283044315,-500.0,0.00027397,2]
[335499796,1724283044327,-500.0,0.00027397,7]
[335499797,1724283044340,-500.0,0.00027397,7]
[335499798,1724283044350,-500.0,0.00027397,7]
[335499799,1724283044360,-4123.93,0.00027397,7]
[335499800,1724283044372,-151.0,0.00027397,7]
[335499801,1724283044383,-151.0,0.00027397,7]
[335499802,1724283044395,-151.0,0.00027397,7]
[335499803,1724283044408,-151.0,0.00027397,7]
[335499804,1724283044420,-151.0,0.00027397,7]
[335499805,1724283044431,-151.0,0.00027397,7]
[335499806,1724283044443,-197.518526,0.000274,7]
[335499807,1724283044453,-197.518534,0.000274,7]
[335499808,1724283044465,-156.97172,0.000274,7]
[335499809,1724283044475,-156.97173,0.000274,7]
[335499810,1724283044488,-159.941398,0.000274,7]
[335499811,1724283044498,-159.941396,0.000274,7]